[Event "*** Titled Tuesday Blitz"]
[Site "Chess.com"]
[Date "2020.05.19"]
[Round "4"]
[White "korbul"]
[Black "Khamrakulov_Djurabek"]
[Result "0-1"]
[WhiteElo "2452"]
[BlackElo "2795"]
[TimeControl "180+1"]
[EndTime "12:40:19 PDT"]
[Termination "Khamrakulov_Djurabek won by resignation"]

1. d4 {[%clk 0:03:00.9]} 1... Nf6 {[%clk 0:02:59.7]} 2. c4 {[%clk 0:03:00.2]}
2... e6 {[%clk 0:03:00.1]} 3. Nf3 {[%clk 0:02:59.7]} 3... c5 {[%clk 0:03:00.4]}
4. d5 {[%clk 0:02:59.2]} 4... b5 {[%clk 0:03:00.2]} 5. Bg5 {[%clk 0:02:56.6]}
5... b4 {[%clk 0:02:59.8]} 6. e4 {[%clk 0:02:52.4]} 6... d6 {[%clk 0:02:59.5]}
7. Nbd2 {[%clk 0:02:50.5]} 7... Be7 {[%clk 0:02:59.4]} 8. Bf4 {[%clk 0:02:40.2]}
8... O-O {[%clk 0:02:55.2]} 9. Bd3 {[%clk 0:02:39.2]} 9... a5 {[%clk 0:02:47.9]}
10. h3 {[%clk 0:02:37.2]} 10... Re8 {[%clk 0:02:22.3]} 11. O-O {[%clk
0:02:36.1]} 11... Nh5 {[%clk 0:02:11.2]} 12. Bh2 {[%clk 0:02:34.4]} 12... Nf6
{[%clk 0:01:53.2]} 13. Bc2 {[%clk 0:02:30.3]} 13... Bd7 {[%clk 0:01:39]} 14. Ba4
{[%clk 0:02:22.6]} 14... Bxa4 {[%clk 0:01:33.3]} 15. Qxa4 {[%clk 0:02:21.8]}
15... Qd7 {[%clk 0:01:33.3]} 16. Qc2 {[%clk 0:02:11]} 16... exd5 {[%clk
0:01:26.3]} 17. exd5 {[%clk 0:02:06.2]} 17... a4 {[%clk 0:01:26.1]} 18. Rae1
{[%clk 0:02:03.5]} 18... Na6 {[%clk 0:01:24.8]} 19. Qd3 {[%clk 0:02:01.6]} 19...
Bf8 {[%clk 0:01:22.4]} 20. g4 {[%clk 0:01:55.7]} 20... g6 {[%clk 0:01:18.9]} 21.
Bf4 {[%clk 0:01:48.4]} 21... Bg7 {[%clk 0:01:15.8]} 22. Kg2 {[%clk 0:01:45.2]}
22... Nc7 {[%clk 0:01:14.1]} 23. Qc2 {[%clk 0:01:15]} 23... Rxe1 {[%clk
0:01:05.3]} 24. Rxe1 {[%clk 0:01:14.2]} 24... Re8 {[%clk 0:01:05.9]} 25. Rxe8+
{[%clk 0:01:10.4]} 25... Ncxe8 {[%clk 0:01:04.8]} 26. Ng5 {[%clk 0:01:05.2]}
26... Nxg4 {[%clk 0:01:01.6]} 27. hxg4 {[%clk 0:00:54.1]} 27... Qxg4+ {[%clk
0:01:01.1]} 28. Bg3 {[%clk 0:00:51.1]} 28... Qxg5 {[%clk 0:01:01]} 29. Ne4
{[%clk 0:00:48.5]} 29... Qf5 {[%clk 0:00:47.7]} 30. f3 {[%clk 0:00:48.2]} 30...
Nf6 {[%clk 0:00:40]} 31. Bxd6 {[%clk 0:00:39.7]} 31... Nxe4 {[%clk 0:00:39.5]}
32. Qxe4 {[%clk 0:00:37.8]} 32... Qxe4 {[%clk 0:00:38.8]} 33. fxe4 {[%clk
0:00:38]} 33... Bxb2 {[%clk 0:00:38.4]} 34. Bxc5 {[%clk 0:00:38.2]} 34... Bc3
{[%clk 0:00:33.4]} 35. d6 {[%clk 0:00:35.9]} 35... b3 {[%clk 0:00:31.4]} 36.
axb3 {[%clk 0:00:35]} 36... axb3 {[%clk 0:00:32.3]} 37. d7 {[%clk 0:00:34.7]}
37... Ba5 {[%clk 0:00:29.9]} 38. Bd4 {[%clk 0:00:34.5]} 38... Kf8 {[%clk
0:00:27.5]} 39. c5 {[%clk 0:00:33.1]} 39... Ke7 {[%clk 0:00:26.9]} 40. c6 {[%clk
0:00:33.3]} 40... Kd6 {[%clk 0:00:26.8]} 41. Kf3 {[%clk 0:00:33.2]} 41... Kxc6
{[%clk 0:00:26.8]} 42. Kf4 {[%clk 0:00:32.8]} 42... Kxd7 {[%clk 0:00:26.9]} 43.
Kg5 {[%clk 0:00:33.7]} 43... h5 {[%clk 0:00:24.8]} 44. Kf6 {[%clk 0:00:33.3]}
44... Ke8 {[%clk 0:00:24.9]} 45. Kg5 {[%clk 0:00:31.7]} 45... Bd2+ {[%clk
0:00:24.8]} 46. Kf6 {[%clk 0:00:31.3]} 46... Bc1 {[%clk 0:00:25.7]} 0-1

[Event "*** Titled Tuesday Blitz"]
[Site "Chess.com"]
[Date "2020.05.19"]
[Round "4"]
[White "realmadridtv"]
[Black "vaishali2001"]
[Result "1-0"]
[WhiteElo "2481"]
[BlackElo "2623"]
[TimeControl "180+1"]
[EndTime "12:40:20 PDT"]
[Termination "realmadridtv won by resignation"]

1. d4 {[%clk 0:03:00.9]} 1... Nf6 {[%clk 0:02:58.9]} 2. c4 {[%clk 0:03:01.1]}
2... c5 {[%clk 0:02:58.6]} 3. d5 {[%clk 0:03:01]} 3... b5 {[%clk 0:02:52.9]} 4.
cxb5 {[%clk 0:03:01.9]} 4... a6 {[%clk 0:02:52.5]} 5. bxa6 {[%clk 0:03:01.9]}
5... g6 {[%clk 0:02:50.6]} 6. Nc3 {[%clk 0:03:00.8]} 6... Bxa6 {[%clk
0:02:48.7]} 7. Nf3 {[%clk 0:02:57.2]} 7... Bg7 {[%clk 0:02:47.9]} 8. e4 {[%clk
0:02:57.5]} 8... Bxf1 {[%clk 0:02:46.5]} 9. Kxf1 {[%clk 0:02:58.4]} 9... O-O
{[%clk 0:02:46.6]} 10. g3 {[%clk 0:02:54]} 10... d6 {[%clk 0:02:46.7]} 11. Kg2
{[%clk 0:02:52.2]} 11... Nbd7 {[%clk 0:02:47.6]} 12. a4 {[%clk 0:02:50.4]} 12...
Qa5 {[%clk 0:02:43.8]} 13. Qe2 {[%clk 0:02:45.7]} 13... Rfb8 {[%clk 0:02:33.3]}
14. Re1 {[%clk 0:02:27.9]} 14... Ne8 {[%clk 0:02:09]} 15. Ra3 {[%clk 0:02:13.3]}
15... Rb4 {[%clk 0:02:00.3]} 16. Nd2 {[%clk 0:02:01]} 16... Bxc3 {[%clk
0:01:53]} 17. bxc3 {[%clk 0:01:52.4]} 17... Rxa4 {[%clk 0:01:51.8]} 18. Rxa4
{[%clk 0:01:48.7]} 18... Qxa4 {[%clk 0:01:52.7]} 19. c4 {[%clk 0:01:44]} 19...
Rb8 {[%clk 0:01:46.5]} 20. Nf3 {[%clk 0:01:42]} 20... f6 {[%clk 0:00:56.6]} 21.
h4 {[%clk 0:01:35.8]} 21... Rb4 {[%clk 0:00:40.3]} 22. h5 {[%clk 0:01:33.6]}
22... Rxc4 {[%clk 0:00:35.7]} 23. hxg6 {[%clk 0:01:33.9]} 23... hxg6 {[%clk
0:00:36.3]} 24. Nh4 {[%clk 0:01:34.6]} 24... Ne5 {[%clk 0:00:33.5]} 25. Bf4
{[%clk 0:01:31.2]} 25... Qc2 {[%clk 0:00:26]} 26. Qe3 {[%clk 0:01:15.6]} 26...
Qd3 {[%clk 0:00:21.2]} 27. Bxe5 {[%clk 0:01:01.4]} 27... Qxe3 {[%clk 0:00:20.7]}
28. Rxe3 {[%clk 0:01:02.3]} 28... dxe5 {[%clk 0:00:18.1]} 29. Nxg6 {[%clk
0:01:02.7]} 29... Kf7 {[%clk 0:00:18]} 30. Nh4 {[%clk 0:01:02.6]} 30... Nd6
{[%clk 0:00:18.1]} 31. f3 {[%clk 0:01:02.2]} 31... Rc2+ {[%clk 0:00:18.2]} 32.
Kh3 {[%clk 0:01:01.6]} 32... c4 {[%clk 0:00:17.1]} 33. f4 {[%clk 0:01:02.2]}
33... Rd2 {[%clk 0:00:13.4]} 34. fxe5 {[%clk 0:01:01.3]} 34... fxe5 {[%clk
0:00:14.3]} 35. Nf3 {[%clk 0:01:01.8]} 35... Kf6 {[%clk 0:00:14.5]} 36. Nxd2
{[%clk 0:01:01.8]} 36... Nf7 {[%clk 0:00:11]} 37. Kg4 {[%clk 0:01:01.5]} 37...
e6 {[%clk 0:00:10.4]} 38. Nxc4 {[%clk 0:01:01.4]} 38... exd5 {[%clk 0:00:10.4]}
39. exd5 {[%clk 0:01:02.3]} 39... e4 {[%clk 0:00:09.9]} 40. Rxe4 {[%clk
0:01:01.3]} 40... Kg7 {[%clk 0:00:10.2]} 41. Re7 {[%clk 0:01:00.9]} 41... Kg6
{[%clk 0:00:09.1]} 42. Rxf7 {[%clk 0:01:01.2]} 42... Kh6 {[%clk 0:00:09.5]} 43.
Kf5 {[%clk 0:01:02.1]} 1-0

[Event "*** Titled Tuesday Blitz"]
[Site "Chess.com"]
[Date "2020.05.19"]
[Round "4"]
[White "MrChampion_Coach"]
[Black "Kavyev_Ruslan"]
[Result "1-0"]
[WhiteElo "2307"]
[BlackElo "2448"]
[TimeControl "180+1"]
[EndTime "12:40:20 PDT"]
[Termination "MrChampion_Coach won by checkmate"]

1. e4 {[%clk 0:02:55.5]} 1... c5 {[%clk 0:02:59.9]} 2. Nf3 {[%clk 0:02:54.9]}
2... d6 {[%clk 0:03:00.2]} 3. Nc3 {[%clk 0:02:51.5]} 3... Nf6 {[%clk 0:03:00.4]}
4. d4 {[%clk 0:02:50.3]} 4... cxd4 {[%clk 0:03:01.3]} 5. Nxd4 {[%clk 0:02:50.9]}
5... a6 {[%clk 0:03:01.7]} 6. Bc4 {[%clk 0:02:46.3]} 6... e6 {[%clk 0:03:01.6]}
7. Bb3 {[%clk 0:02:45.1]} 7... b5 {[%clk 0:03:00.6]} 8. O-O {[%clk 0:02:42.2]}
8... Be7 {[%clk 0:03:00.8]} 9. Qf3 {[%clk 0:02:40.8]} 9... Qc7 {[%clk
0:03:01.1]} 10. a3 {[%clk 0:02:38.4]} 10... O-O {[%clk 0:03:00.4]} 11. Qg3
{[%clk 0:02:37.7]} 11... Re8 {[%clk 0:02:57]} 12. Bh6 {[%clk 0:02:35.7]} 12...
Bf8 {[%clk 0:02:57]} 13. Bg5 {[%clk 0:02:35.6]} 13... Be7 {[%clk 0:02:56.3]} 14.
Rae1 {[%clk 0:02:33.9]} 14... Bd7 {[%clk 0:02:53.9]} 15. Kh1 {[%clk 0:02:30.4]}
15... Nc6 {[%clk 0:02:53.9]} 16. Nxc6 {[%clk 0:02:17]} 16... Bxc6 {[%clk
0:02:48]} 17. Re2 {[%clk 0:02:09.7]} 17... Rad8 {[%clk 0:02:45.1]} 18. Rfe1
{[%clk 0:02:05.6]} 18... Qb7 {[%clk 0:02:45]} 19. f3 {[%clk 0:01:47.8]} 19... a5
{[%clk 0:02:34.3]} 20. Bh6 {[%clk 0:01:37.7]} 20... Bf8 {[%clk 0:02:32.9]} 21.
Bg5 {[%clk 0:01:28.9]} 21... Be7 {[%clk 0:02:32.9]} 22. Bh6 {[%clk 0:01:26.6]}
22... g6 {[%clk 0:02:31.6]} 23. e5 {[%clk 0:01:15.4]} 23... Nh5 {[%clk
0:01:52.4]} 24. Qg4 {[%clk 0:01:12.1]} 24... dxe5 {[%clk 0:01:52.7]} 25. Rxe5
{[%clk 0:01:11.9]} 25... Bf6 {[%clk 0:01:52.9]} 26. Rxh5 {[%clk 0:01:10.9]}
26... a4 {[%clk 0:01:39.3]} 27. Ba2 {[%clk 0:01:09.7]} 27... Qd7 {[%clk
0:01:12]} 28. Rc5 {[%clk 0:00:59.6]} 28... Bb7 {[%clk 0:01:11.5]} 29. Qf4 {[%clk
0:00:56.9]} 29... Bd4 {[%clk 0:01:09.1]} 30. Rc7 {[%clk 0:00:52.2]} 30... e5
{[%clk 0:00:59.8]} 31. Qf6 {[%clk 0:00:48.9]} 31... e4 {[%clk 0:00:58.8]} 32.
Rxd7 {[%clk 0:00:45.4]} 32... Bxf6 {[%clk 0:00:58.6]} 33. Rxd8 {[%clk
0:00:42.8]} 33... Rxd8 {[%clk 0:00:59.5]} 34. Nxe4 {[%clk 0:00:42.3]} 34... Bxb2
{[%clk 0:00:59.4]} 35. h4 {[%clk 0:00:35.7]} 35... Bxa3 {[%clk 0:00:59]} 36.
Nf6+ {[%clk 0:00:33.3]} 36... Kh8 {[%clk 0:00:59.1]} 37. Bxf7 {[%clk 0:00:33.4]}
37... b4 {[%clk 0:00:57.5]} 38. Re7 {[%clk 0:00:28.6]} 38... b3 {[%clk
0:00:22.3]} 39. Ne8 {[%clk 0:00:28]} 39... Bxe7 {[%clk 0:00:21.5]} 40. Bg7#
{[%clk 0:00:26.4]} 1-0

[Event "*** Titled Tuesday Blitz"]
[Site "Chess.com"]
[Date "2020.05.19"]
[Round "4"]
[White "RubensCezila"]
[Black "PawnEatingZombie"]
[Result "1-0"]
[WhiteElo "2445"]
[BlackElo "2254"]
[TimeControl "180+1"]
[EndTime "12:40:20 PDT"]
[Termination "RubensCezila won by resignation"]

1. c4 {[%clk 0:03:00.9]} 1... e6 {[%clk 0:02:59.3]} 2. Nc3 {[%clk 0:03:00.7]}
2... d5 {[%clk 0:02:59.8]} 3. e3 {[%clk 0:03:00.7]} 3... Nf6 {[%clk 0:02:59]} 4.
Nf3 {[%clk 0:02:59.1]} 4... Bd6 {[%clk 0:02:59]} 5. b3 {[%clk 0:02:57.7]} 5...
b6 {[%clk 0:02:57.1]} 6. g3 {[%clk 0:02:56.2]} 6... Bb7 {[%clk 0:02:56.1]} 7.
Bg2 {[%clk 0:02:56.1]} 7... a6 {[%clk 0:02:53.3]} 8. O-O {[%clk 0:02:53.1]} 8...
O-O {[%clk 0:02:52.9]} 9. Bb2 {[%clk 0:02:50]} 9... Nbd7 {[%clk 0:02:48]} 10. d4
{[%clk 0:02:46.9]} 10... Qe7 {[%clk 0:02:46.3]} 11. Rc1 {[%clk 0:02:41.4]} 11...
Rfd8 {[%clk 0:02:36.9]} 12. Qe2 {[%clk 0:02:40.4]} 12... Rac8 {[%clk 0:02:25.1]}
13. Rfd1 {[%clk 0:02:37.9]} 13... dxc4 {[%clk 0:02:12.3]} 14. bxc4 {[%clk
0:02:36.1]} 14... c5 {[%clk 0:02:12.5]} 15. d5 {[%clk 0:02:35.5]} 15... exd5
{[%clk 0:02:10.1]} 16. Nh4 {[%clk 0:02:03.3]} 16... g6 {[%clk 0:02:09.4]} 17.
cxd5 {[%clk 0:01:50]} 17... b5 {[%clk 0:02:00.3]} 18. a3 {[%clk 0:01:30.9]}
18... Nb6 {[%clk 0:01:47]} 19. e4 {[%clk 0:00:59.6]} 19... Nc4 {[%clk
0:01:43.4]} 20. f4 {[%clk 0:00:56.9]} 20... Bxf4 {[%clk 0:01:26.4]} 21. gxf4
{[%clk 0:00:52.4]} 21... Nxd5 {[%clk 0:01:18.8]} 22. Nxd5 {[%clk 0:00:47.4]}
22... Bxd5 {[%clk 0:01:17.1]} 23. Nf3 {[%clk 0:00:39.2]} 23... Bxe4 {[%clk
0:01:04.5]} 24. Rxd8+ {[%clk 0:00:24.5]} 24... Rxd8 {[%clk 0:01:01.9]} 25. Rxc4
{[%clk 0:00:25]} 25... bxc4 {[%clk 0:00:56.4]} 26. Ng5 {[%clk 0:00:20.7]} 26...
f5 {[%clk 0:00:41.7]} 27. Qxc4+ {[%clk 0:00:19.3]} 27... Kf8 {[%clk 0:00:37.8]}
28. Ne6+ {[%clk 0:00:18.9]} 28... Ke8 {[%clk 0:00:29.2]} 29. Nxd8 {[%clk
0:00:13.9]} 29... Qxd8 {[%clk 0:00:26.4]} 30. Bxe4 {[%clk 0:00:13.1]} 30... Qd1+
{[%clk 0:00:26.2]} 31. Qf1 {[%clk 0:00:12.2]} 31... Qxf1+ {[%clk 0:00:19.7]} 32.
Kxf1 {[%clk 0:00:12.2]} 32... fxe4 {[%clk 0:00:20.6]} 33. Ke2 {[%clk 0:00:12.5]}
33... Ke7 {[%clk 0:00:19.5]} 34. Ke3 {[%clk 0:00:12.9]} 34... Ke6 {[%clk
0:00:19.5]} 35. Kxe4 {[%clk 0:00:13.4]} 1-0

[Event "*** Titled Tuesday Blitz"]
[Site "Chess.com"]
[Date "2020.05.19"]
[Round "4"]
[White "The_Chess_Coach"]
[Black "Xtrmntr78"]
[Result "1-0"]
[WhiteElo "2147"]
[BlackElo "2361"]
[TimeControl "180+1"]
[EndTime "12:40:22 PDT"]
[Termination "The_Chess_Coach won on time"]

1. d4 {[%clk 0:03:00.9]} 1... f5 {[%clk 0:01:33.7]} 2. e4 {[%clk 0:02:58.4]}
2... fxe4 {[%clk 0:01:32.9]} 3. Nc3 {[%clk 0:02:58.3]} 3... Nf6 {[%clk
0:01:33.8]} 4. Bg5 {[%clk 0:02:58.2]} 4... Nc6 {[%clk 0:01:34.4]} 5. Bc4 {[%clk
0:02:47.6]} 5... e6 {[%clk 0:01:31.4]} 6. f3 {[%clk 0:02:42.9]} 6... d5 {[%clk
0:01:18]} 7. Bb5 {[%clk 0:02:37.4]} 7... Bd7 {[%clk 0:01:13.9]} 8. fxe4 {[%clk
0:02:33.9]} 8... dxe4 {[%clk 0:01:13.8]} 9. Nxe4 {[%clk 0:02:30.1]} 9... Be7
{[%clk 0:01:14]} 10. Nc3 {[%clk 0:02:11.8]} 10... O-O {[%clk 0:01:03.3]} 11. Nf3
{[%clk 0:02:11.2]} 11... Ng4 {[%clk 0:01:00.5]} 12. Bxe7 {[%clk 0:02:06.4]}
12... Qxe7 {[%clk 0:00:59.8]} 13. Qe2 {[%clk 0:01:52.9]} 13... a6 {[%clk
0:00:35.9]} 14. Bc4 {[%clk 0:01:47.5]} 14... b5 {[%clk 0:00:31.8]} 15. Bb3
{[%clk 0:01:44.5]} 15... Na5 {[%clk 0:00:30.3]} 16. O-O {[%clk 0:01:11.6]} 16...
Nxb3 {[%clk 0:00:18.2]} 17. axb3 {[%clk 0:01:12.5]} 17... Bc6 {[%clk 0:00:16.7]}
18. d5 {[%clk 0:01:06.8]} 18... Qc5+ {[%clk 0:00:15.4]} 19. Kh1 {[%clk
0:01:06.8]} 19... Bxd5 {[%clk 0:00:14]} 20. h3 {[%clk 0:01:03.4]} 20... Ne3
{[%clk 0:00:12.4]} 21. Rfe1 {[%clk 0:01:01.7]} 21... Nf5 {[%clk 0:00:12.2]} 22.
Qe5 {[%clk 0:00:59.2]} 22... Qc6 {[%clk 0:00:08.8]} 23. Nxd5 {[%clk 0:00:56.5]}
23... exd5 {[%clk 0:00:08.3]} 24. Rad1 {[%clk 0:00:54.7]} 24... Qxc2 {[%clk
0:00:07.2]} 25. Qxd5+ {[%clk 0:00:53.5]} 25... Kh8 {[%clk 0:00:07.1]} 26. Ng5
{[%clk 0:00:47.7]} 26... Nh6 {[%clk 0:00:02.5]} 27. Rf1 {[%clk 0:00:39.6]} 27...
Qg6 {[%clk 0:00:01.3]} 28. Rxf8+ {[%clk 0:00:29.9]} 28... Rxf8 {[%clk
0:00:01.8]} 29. Ne6 {[%clk 0:00:30]} 29... Rg8 {[%clk 0:00:01.2]} 30. Qd7 {[%clk
0:00:20.5]} 30... Nf5 {[%clk 0:00:01.4]} 31. Nd8 {[%clk 0:00:17]} 1-0

[Event "*** Titled Tuesday Blitz"]
[Site "Chess.com"]
[Date "2020.05.19"]
[Round "4"]
[White "elohunter1999"]
[Black "Andreikka"]
[Result "1-0"]
[WhiteElo "2556"]
[BlackElo "2944"]
[TimeControl "180+1"]
[EndTime "12:40:24 PDT"]
[Termination "elohunter1999 won by resignation"]

1. e4 {[%clk 0:03:00.9]} 1... d5 {[%clk 0:02:59.7]} 2. exd5 {[%clk 0:03:00.2]}
2... Qxd5 {[%clk 0:03:00.6]} 3. Nc3 {[%clk 0:03:00.2]} 3... Qa5 {[%clk
0:03:00.9]} 4. d4 {[%clk 0:03:00.1]} 4... Nf6 {[%clk 0:03:00.7]} 5. Nf3 {[%clk
0:02:59.3]} 5... c6 {[%clk 0:03:01]} 6. Bc4 {[%clk 0:02:58.6]} 6... Bf5 {[%clk
0:02:59.3]} 7. Bd2 {[%clk 0:02:58.3]} 7... e6 {[%clk 0:02:54.5]} 8. Nd5 {[%clk
0:02:57.7]} 8... Qd8 {[%clk 0:02:53.5]} 9. Nxf6+ {[%clk 0:02:57.6]} 9... gxf6
{[%clk 0:02:53.8]} 10. Bb3 {[%clk 0:02:56.8]} 10... Nd7 {[%clk 0:02:51.5]} 11.
Qe2 {[%clk 0:02:55.9]} 11... a5 {[%clk 0:02:42.9]} 12. a3 {[%clk 0:02:50.5]}
12... a4 {[%clk 0:02:37.6]} 13. Ba2 {[%clk 0:02:49.2]} 13... Bxc2 {[%clk
0:02:35.1]} 14. O-O {[%clk 0:02:13]} 14... Be7 {[%clk 0:02:24.2]} 15. Bh6 {[%clk
0:02:07.8]} 15... Qb6 {[%clk 0:02:18.3]} 16. Qxc2 {[%clk 0:02:05.5]} 16... f5
{[%clk 0:02:08.4]} 17. Rad1 {[%clk 0:01:53.5]} 17... Rg8 {[%clk 0:02:04.3]} 18.
Ne5 {[%clk 0:01:48.1]} 18... Nxe5 {[%clk 0:01:52.5]} 19. dxe5 {[%clk 0:01:47]}
19... Ra5 {[%clk 0:01:51.1]} 20. Rfe1 {[%clk 0:01:42]} 20... Qc7 {[%clk
0:01:43]} 21. Qd2 {[%clk 0:01:36.9]} 21... Rg4 {[%clk 0:01:32.8]} 22. h3 {[%clk
0:01:29]} 22... Rg6 {[%clk 0:01:33.1]} 23. Bf4 {[%clk 0:01:26.7]} 23... Ra8
{[%clk 0:01:19.8]} 24. Qc3 {[%clk 0:01:23.6]} 24... Kf8 {[%clk 0:01:08.5]} 25.
Rd3 {[%clk 0:01:22.3]} 25... Rd8 {[%clk 0:01:05.1]} 26. Red1 {[%clk 0:01:21.8]}
26... Rxd3 {[%clk 0:01:05.2]} 27. Qxd3 {[%clk 0:01:21.1]} 27... Qb6 {[%clk
0:01:04.4]} 28. Qd4 {[%clk 0:01:15.9]} 28... Qa5 {[%clk 0:00:58.5]} 29. Bd2
{[%clk 0:01:06.6]} 29... Qa8 {[%clk 0:00:58.4]} 30. Bb4 {[%clk 0:01:05.7]} 30...
Bxb4 {[%clk 0:00:49.9]} 31. Qxb4+ {[%clk 0:01:05.1]} 31... Kg7 {[%clk
0:00:50.5]} 32. Rd7 {[%clk 0:01:01.4]} 32... c5 {[%clk 0:00:23.9]} 33. Qxb7
{[%clk 0:00:58.9]} 33... Qa5 {[%clk 0:00:20.6]} 34. Rxf7+ {[%clk 0:00:53.2]}
34... Kg8 {[%clk 0:00:21]} 35. Rd7 {[%clk 0:00:34.6]} 35... Qe1+ {[%clk
0:00:17.6]} 36. Kh2 {[%clk 0:00:33.6]} 36... Qxe5+ {[%clk 0:00:16.1]} 37. g3
{[%clk 0:00:33.5]} 37... Kh8 {[%clk 0:00:09.6]} 38. Rxh7+ {[%clk 0:00:31.1]} 1-0

[Event "*** Titled Tuesday Blitz"]
[Site "Chess.com"]
[Date "2020.05.19"]
[Round "4"]
[White "harkerchess"]
[Black "IwkooO"]
[Result "0-1"]
[WhiteElo "2076"]
[BlackElo "2550"]
[TimeControl "180+1"]
[EndTime "12:40:24 PDT"]
[Termination "IwkooO won by checkmate"]

1. d4 {[%clk 0:03:00.9]} 1... Nf6 {[%clk 0:02:59.7]} 2. Bg5 {[%clk 0:03:00.4]}
2... e6 {[%clk 0:02:59.2]} 3. e4 {[%clk 0:02:59.8]} 3... h6 {[%clk 0:02:59.3]}
4. Bxf6 {[%clk 0:02:59.3]} 4... Qxf6 {[%clk 0:03:00.2]} 5. c3 {[%clk 0:02:59.8]}
5... d5 {[%clk 0:03:00.2]} 6. e5 {[%clk 0:02:54.2]} 6... Qd8 {[%clk 0:03:00]} 7.
Bd3 {[%clk 0:02:54]} 7... c5 {[%clk 0:03:00.5]} 8. Nd2 {[%clk 0:02:52.8]} 8...
Nc6 {[%clk 0:03:00.7]} 9. Ne2 {[%clk 0:02:50.8]} 9... Qb6 {[%clk 0:02:54.2]} 10.
Nf3 {[%clk 0:02:42.8]} 10... Qxb2 {[%clk 0:02:43.5]} 11. O-O {[%clk 0:02:42]}
11... Be7 {[%clk 0:02:31.8]} 12. Qa4 {[%clk 0:02:38.1]} 12... Qb6 {[%clk
0:02:26.5]} 13. Rab1 {[%clk 0:02:35.5]} 13... Qc7 {[%clk 0:02:26.9]} 14. Rb5
{[%clk 0:02:16.3]} 14... Bd7 {[%clk 0:02:18.1]} 15. Qd1 {[%clk 0:01:55.4]} 15...
c4 {[%clk 0:02:10.9]} 16. Bc2 {[%clk 0:01:53.8]} 16... Nxe5 {[%clk 0:02:04.3]}
17. Nxe5 {[%clk 0:01:27.3]} 17... Bxb5 {[%clk 0:02:03.2]} 18. Qb1 {[%clk
0:01:27.2]} 18... Bd7 {[%clk 0:01:50]} 19. Bg6 {[%clk 0:01:26.3]} 19... O-O
{[%clk 0:01:14.7]} 20. Bh7+ {[%clk 0:01:11.1]} 20... Kh8 {[%clk 0:01:14.8]} 21.
Nf4 {[%clk 0:01:10.7]} 21... Be8 {[%clk 0:01:06.6]} 22. h4 {[%clk 0:00:18.1]}
22... Bxh4 {[%clk 0:00:45.4]} 23. Bc2 {[%clk 0:00:13.2]} 23... Bf6 {[%clk
0:00:44.1]} 24. Neg6+ {[%clk 0:00:11.8]} 24... fxg6 {[%clk 0:00:44.1]} 25. Nxe6
{[%clk 0:00:11.6]} 25... Qe7 {[%clk 0:00:41.9]} 26. Nxf8 {[%clk 0:00:11.3]}
26... Qxf8 {[%clk 0:00:42.8]} 27. Qxb7 {[%clk 0:00:11.2]} 27... Bf7 {[%clk
0:00:39.1]} 28. Rb1 {[%clk 0:00:08.5]} 28... a5 {[%clk 0:00:38]} 29. Ba4 {[%clk
0:00:08.4]} 29... Rd8 {[%clk 0:00:32.9]} 30. Bc6 {[%clk 0:00:08]} 30... Bg5
{[%clk 0:00:21.9]} 31. Rb5 {[%clk 0:00:07.7]} 31... Bf4 {[%clk 0:00:16.6]} 32.
Rxa5 {[%clk 0:00:05.2]} 32... Rb8 {[%clk 0:00:16.7]} 33. Qd7 {[%clk 0:00:04.1]}
33... Rb1# {[%clk 0:00:16.7]} 0-1